fUSD/lending_fUSD_20250320
["ID","MTS","AMOUNT","RATE_DAILY","PERIOD"]
[356476757,1742506300647,-500.0,0.00049041,120]
[356476758,1742506300656,-500.0,0.00049041,120]
[356476759,1742506300666,-500.0,0.00049041,7]
[356476760,1742506300675,-500.0,0.00049041,120]
[356476761,1742506300685,-2727.58,0.00049041,120]
[356476762,1742506300694,-500.0,0.00049041,120]
[356476763,1742506300703,-500.0,0.00049041,120]
[356476764,1742506300712,-554.02,0.00049041,120]
[356476765,1742506300722,-500.0,0.00049041,120]
[356476766,1742506300731,-500.0,0.00049041,120]
[356476767,1742506300740,-500.0,0.00049041,120]
[356476768,1742506300750,-500.0,0.00049041,10]
[356476769,1742506300759,-2523.63,0.00049041,120]
[356476770,1742506300768,-500.0,0.00049041,120]
[356476771,1742506300778,-500.0,0.00049041,120]
[356476772,1742506300787,-176.4,0.00049041,120]
[356476773,1742506300797,-500.0,0.00049041,120]
[356476774,1742506300806,-500.0,0.00049041,120]
[356476775,1742506300816,-500.0,0.00049041,120]
[356476776,1742506300825,-788.19,0.00049041,120]
[356476777,1742506300834,-793.78,0.00049041,120]
[356476778,1742506300844,-2731.28,0.00049041,120]
[356476779,1742506300853,-500.0,0.00049041,120]
[356476780,1742506300863,-500.0,0.00049041,120]
[356476781,1742506300872,-500.0,0.00049041,120]
[356476782,1742506300881,-519.47,0.00049041,120]
[356476783,1742506300890,-500.0,0.00049041,120]
[356476784,1742506300900,-500.0,0.00049041,120]
[356476785,1742506300909,-500.0,0.00049041,120]
[356476786,1742506300919,-500.0,0.00049041,120]
[356476787,1742506300929,-500.0,0.00049041,120]
[356476788,1742506300939,-500.0,0.00049041,120]
[356476789,1742506300948,-500.0,0.00049041,120]
[356476790,1742506300962,-1903.57,0.00049041,120]
[356476791,1742506300972,-500.0,0.00049041,120]
[356476792,1742506300981,-564.4,0.00049041,120]
[356476793,1742506300991,-500.0,0.00049041,120]
[356476794,1742506301002,-500.0,0.00049041,120]
[356476795,1742506301012,-569.58,0.00049041,120]
[356476796,1742506301022,-358.01,0.00049041,120]
[356476797,1742506301033,-500.0,0.00049041,120]
[356476798,1742506301042,-500.0,0.00049041,120]
[356476799,1742506301052,-1749.23,0.00049041,120]
[356476800,1742506301061,-500.0,0.00049041,120]
[356476801,1742506301071,-500.0,0.00049041,120]
[356476802,1742506301080,-2471.83,0.00049041,120]
[356476803,1742506301091,-500.0,0.00049041,120]
[356476804,1742506301100,-500.0,0.00049041,120]
[356476805,1742506301110,-500.0,0.00049041,120]
[356476806,1742506301120,-500.0,0.00049041,120]
[356476807,1742506301130,-500.0,0.00049041,120]
[356476808,1742506301140,-500.0,0.00049041,120]
[356476809,1742506301150,-500.0,0.00049041,120]
[356476810,1742506301160,-184.92,0.00049041,120]
[356476811,1742506301170,-500.0,0.00049041,120]
[356476812,1742506301180,-500.0,0.00049041,120]
[356476813,1742506301189,-1951.54,0.00049041,120]
[356476814,1742506301199,-500.0,0.00049041,120]
[356476815,1742506301208,-584.57,0.00049041,120]
[356476816,1742506301217,-500.0,0.00049041,120]
[356476817,1742506301228,-500.0,0.00049041,120]
[356476818,1742506301238,-500.0,0.00049041,120]
[356476819,1742506301248,-500.0,0.00049041,120]
[356476820,1742506301258,-2426.87,0.00049041,120]
[356476821,1742506301269,-500.0,0.00049041,120]
[356476822,1742506301280,-500.0,0.00049041,120]
[356476823,1742506301289,-521.83,0.00049041,120]
[356476824,1742506301299,-500.0,0.00049041,120]
[356476825,1742506301307,-500.0,0.00049041,120]
[356476826,1742506301317,-500.0,0.00049041,120]
[356476827,1742506301326,-500.0,0.00049041,120]
[356476828,1742506301335,-500.0,0.00049041,30]
[356476829,1742506301344,-500.0,0.00049041,120]
[356476830,1742506301353,-490.19658374,0.00049041,120]
[356476831,1742506301363,-397.92,0.00049041,120]
[356476832,1742506301373,-555.15,0.00049041,120]
[356476833,1742506301382,-500.0,0.00049041,120]
[356476834,1742506301391,-500.0,0.00049041,120]
[356476835,1742506301401,-300.0,0.00049041,120]
[356476836,1742506301410,-500.0,0.00049041,120]
[356476837,1742506301420,-500.0,0.00049041,120]
[356476838,1742506301429,-500.0,0.00049041,120]
[356476839,1742506301439,-707.59,0.00049041,120]
[356476840,1742506301449,-500.0,0.00049041,120]
[356476841,1742506301459,-228.49,0.00049041,120]
[356476842,1742506301468,-6129.45439403,0.0004925,120]
[356476843,1742506301479,-787.0,0.00049271,2]
[356476844,1742506301489,-1272.0,0.00049271,2]
[356476845,1742506301499,-907.0,0.00049271,2]
[356476846,1742506301508,-4082.0,0.00049271,2]
[356476847,1742506301517,-1430.0,0.00049271,2]
[356476848,1742506301526,-542.0,0.00049271,2]
[356476849,1742506301535,-1115.0,0.00049271,2]
[356476850,1742506301545,-291.642,0.00049271,2]
[356476851,1742506301554,-1280.0,0.00049271,2]
[356476852,1742506301564,-2035.0,0.00049271,2]
[356476853,1742506301574,-642.0,0.00049271,2]
[356476854,1742506301584,-151.0,0.00049271,2]
[356476855,1742506301594,-298.79114301,0.00049315,120]
[356476856,1742506301603,-500.0,0.00049315,120]
[356476857,1742506301613,-592.39418822,0.00049315,120]
[356476858,1742506301622,-280.9,0.00049315,7]
[356476859,1742506301632,-1249.38,0.00049315,120]
[356476860,1742506301642,-1000.0,0.00049315,120]
[356476861,1742506301651,-704.1,0.00049315,120]
[356476862,1742506301660,-500.0,0.00049315,120]
[356476863,1742506301670,-500.0,0.00049315,120]
[356476864,1742506301679,-500.0,0.00049315,120]
[356476865,1742506301688,-2093.7,0.00049315,120]
[356476866,1742506301795,-1294.52,0.00049315,120]
[356476867,1742506301805,-805.3,0.00049315,120]
[356476868,1742506301815,-1740.46,0.00049315,120]
[356476869,1742506301825,-500.0,0.00049315,60]
[356476870,1742506301836,-1204.72,0.00049315,120]
[356476871,1742506301847,-1605.43,0.00049315,120]
[356476872,1742506301856,-2366.34,0.00049315,120]
[356476873,1742506301866,-2058.24,0.00049315,120]
[356476874,1742506301875,-500.0,0.00049315,120]
[356476875,1742506301884,-1347.38,0.00049315,120]
[356476876,1742506301895,-1899.58,0.00049315,120]
[356476877,1742506301905,-1574.01,0.00049315,120]
[356476878,1742506301915,-3000.0,0.00049315,120]
[356476879,1742506301925,-2599.75,0.00049315,120]
[356476880,1742506301935,-500.0,0.00049315,120]
[356476881,1742506301944,-1311.47,0.00049315,120]
[356476882,1742506301955,-1183.6,0.00049315,120]
[356476883,1742506301964,-1215.73,0.00049315,2]
[356476884,1742506301974,-500.0,0.00049315,120]
[356476885,1742506301984,-642.45,0.00049315,7]
[356476886,1742506301994,-500.0,0.00049315,120]
[356476887,1742506302005,-500.0,0.00049315,120]
[356476888,1742506302015,-579.59,0.00049315,120]
[356476889,1742506302024,-500.0,0.00049315,120]
[356476890,1742506302036,-687.5,0.00049315,120]
[356476891,1742506302046,-687.5,0.00049315,120]
[356476892,1742506302055,-687.5,0.00049315,120]
[356476893,1742506302065,-687.5,0.00049315,120]
[356476894,1742506302074,-687.5,0.00049315,120]
[356476895,1742506302085,-687.5,0.00049315,120]
[356476896,1742506302094,-687.5,0.00049315,120]
[356476897,1742506302103,-687.5,0.00049315,120]
[356476898,1742506302112,-687.5,0.00049315,120]
[356476899,1742506302123,-687.5,0.00049315,120]
[356476900,1742506302134,-687.5,0.00049315,120]
[356476901,1742506302143,-500.0,0.00049315,120]
[356476902,1742506302153,-500.0,0.00049315,120]
[356476903,1742506302163,-500.0,0.00049315,120]
[356476904,1742506302175,-500.0,0.00049315,120]
[356476905,1742506302184,-2414.38,0.00049315,120]
[356476906,1742506302193,-500.0,0.00049315,120]
[356476907,1742506302203,-500.0,0.00049315,120]
[356476908,1742506302212,-500.0,0.00049315,120]
[356476909,1742506302222,-150.47,0.00049315,120]
[356476910,1742506302231,-317.22,0.00049315,120]
[356476911,1742506302240,-500.0,0.00049315,120]
[356476912,1742506302250,-500.0,0.00049315,120]
[356476913,1742506302260,-500.0,0.00049315,120]
[356476914,1742506302269,-500.0,0.00049315,120]
[356476915,1742506302279,-711.07,0.00049315,120]
[356476916,1742506302289,-500.0,0.00049315,120]
[356476917,1742506302300,-2861.11,0.00049315,120]
[356476918,1742506302311,-500.0,0.00049315,120]
[356476919,1742506302320,-500.0,0.00049315,120]
[356476920,1742506302330,-2613.79,0.00049315,120]
[356476921,1742506302339,-282.3102669,0.00049315,120]
[356476922,1742506302349,-500.0,0.00049315,120]
[356476923,1742506302360,-1352.41,0.00049315,2]
[356476924,1742506302369,-500.0,0.00049315,120]
[356476925,1742506302380,-500.0,0.00049315,120]
[356476926,1742506302389,-500.0,0.00049315,7]
[356476927,1742506302399,-500.0,0.00049315,120]
[356476928,1742506302409,-2727.58,0.00049315,120]
[356476929,1742506302418,-500.0,0.00049315,120]
[356476930,1742506302428,-500.0,0.00049315,120]
[356476931,1742506302438,-554.02,0.00049315,120]
[356476932,1742506302447,-500.0,0.00049315,120]
[356476933,1742506302457,-573.62,0.00049315,120]
[356476934,1742506302466,-612.94,0.00049315,120]
[356476935,1742506302475,-500.0,0.00049315,10]
[356476936,1742506302484,-2523.63,0.00049315,120]
[356476937,1742506302494,-500.0,0.00049315,120]
[356476938,1742506302505,-500.0,0.00049315,120]
[356476939,1742506302516,-500.0,0.00049315,120]
[356476940,1742506302526,-500.0,0.00049315,120]
[356476941,1742506302535,-500.0,0.00049315,120]
[356476942,1742506302546,-788.19,0.00049315,120]
[356476943,1742506302555,-793.78,0.00049315,120]
[356476944,1742506302565,-2731.28,0.00049315,120]
[356476945,1742506302575,-319.02,0.00049315,120]
[356476946,1742506302585,-500.0,0.00049315,120]
[356476947,1742506302594,-500.0,0.00049315,120]
[356476948,1742506302604,-572.52286969,0.00049315,120]
[356476949,1742506302612,-500.0,0.00049315,120]
[356476950,1742506302623,-500.0,0.00049315,120]
[356476951,1742506302632,-500.0,0.00049315,120]
[356476952,1742506302642,-500.0,0.00049315,120]
[356476953,1742506302652,-500.0,0.00049315,120]
[356476954,1742506302661,-500.0,0.00049315,120]
[356476955,1742506302671,-1903.57,0.00049315,120]
[356476956,1742506302680,-289.31,0.00049315,120]
[356476957,1742506302689,-499.89305956,0.00049315,120]
[356476958,1742506302699,-500.0,0.00049315,120]
[356476959,1742506302708,-500.0,0.00049315,120]
[356476960,1742506302717,-500.0,0.00049315,120]
[356476961,1742506302727,-1749.23,0.00049315,120]
[356476962,1742506302736,-500.0,0.00049315,120]
[356476963,1742506302745,-500.0,0.00049315,120]
[356476964,1742506302755,-2471.83,0.00049315,120]
[356476965,1742506302764,-500.0,0.00049315,120]
[356476966,1742506302773,-500.0,0.00049315,120]
[356476967,1742506302782,-308.94,0.00049315,120]
[356476968,1742506302792,-268.54,0.00049315,120]
[356476969,1742506302801,-500.0,0.00049315,120]
[356476970,1742506302810,-500.0,0.00049315,120]
[356476971,1742506302819,-500.0,0.00049315,120]
[356476972,1742506302828,-500.0,0.00049315,120]
[356476973,1742506302836,-500.0,0.00049315,120]
[356476974,1742506302845,-1951.54,0.00049315,120]
[356476975,1742506302854,-584.57,0.00049315,120]
[356476976,1742506302863,-500.0,0.00049315,120]
[356476977,1742506302872,-500.0,0.00049315,120]
[356476978,1742506302881,-500.0,0.00049315,120]
[356476979,1742506302890,-352.91,0.00049315,120]
[356476980,1742506302899,-500.0,0.00049315,120]
[356476981,1742506302909,-500.0,0.00049315,120]
[356476982,1742506302920,-2426.87,0.00049315,120]
[356476983,1742506302929,-162.02,0.00049315,120]
[356476984,1742506302939,-500.0,0.00049315,120]
[356476985,1742506302948,-500.0,0.00049315,120]
[356476986,1742506302959,-262.90294701,0.00049315,120]
[356476987,1742506302968,-500.0,0.00049315,120]
[356476988,1742506302977,-500.0,0.00049315,120]
[356476989,1742506302986,-500.0,0.00049315,30]
[356476990,1742506302996,-800.0,0.00049315,120]
[356476991,1742506303006,-500.0,0.00049315,120]
[356476992,1742506303016,-500.0,0.00049315,120]
[356476993,1742506303026,-634.81,0.00049315,120]
[356476994,1742506303038,-300.0,0.00049315,120]
[356476995,1742506303049,-500.0,0.00049315,120]
[356476996,1742506303059,-375.33,0.00049315,120]
[356476997,1742506303071,-500.0,0.00049315,120]
[356476998,1742506303082,-707.59,0.00049315,120]
[356476999,1742506303093,-500.0,0.00049315,120]
[356477000,1742506303102,-156.36,0.00049342,120]
[356477001,1742506303112,-6909.28976804,0.00049346,120]
[356477002,1742506303122,-762.49634503,0.000495,120]
[356477003,1742506303131,-150.98819929,0.000495,120]
[356477004,1742506303139,-150.19,0.00049557,120]
[356477005,1742506303149,-350.0,0.00049573,120]
[356477006,1742506303158,-280.9,0.00049589,7]
[356477007,1742506303167,-1249.38,0.00049589,120]
[356477008,1742506303175,-1000.0,0.00049589,120]
[356477009,1742506303184,-704.1,0.00049589,120]
[356477010,1742506303193,-500.0,0.00049589,120]
[356477011,1742506303202,-500.0,0.00049589,120]
[356477012,1742506303211,-500.0,0.00049589,120]
[356477013,1742506303221,-2093.7,0.00049589,120]
[356477014,1742506303231,-1294.52,0.00049589,120]
[356477015,1742506303241,-805.3,0.00049589,120]
[356477016,1742506303249,-1740.46,0.00049589,120]
[356477017,1742506303258,-582.20924662,0.00049589,60]
[356477018,1742506303267,-1204.72,0.00049589,120]
[356477019,1742506303277,-1605.43,0.00049589,120]
[356477020,1742506303288,-2366.34,0.00049589,120]
[356477021,1742506303299,-2058.24,0.00049589,120]
[356477022,1742506303309,-500.0,0.00049589,120]
[356477023,1742506303319,-1347.38,0.00049589,120]
[356477024,1742506303329,-1899.58,0.00049589,120]
[356477025,1742506303339,-1574.01,0.00049589,120]
[356477026,1742506303348,-3000.0,0.00049589,120]
[356477027,1742506303358,-2599.75,0.00049589,120]
[356477028,1742506303368,-602.58,0.00049589,120]
[356477029,1742506303378,-1311.47,0.00049589,120]
[356477030,1742506303389,-1183.6,0.00049589,120]
[356477031,1742506303398,-1215.73,0.00049589,2]
[356477032,1742506303409,-348.98,0.00049589,120]
[356477033,1742506303419,-642.45,0.00049589,7]
[356477034,1742506303430,-500.0,0.00049589,120]
[356477035,1742506303440,-500.0,0.00049589,120]
[356477036,1742506303451,-579.59,0.00049589,120]
[356477037,1742506303460,-500.0,0.00049589,120]
[356477038,1742506303470,-687.5,0.00049589,120]
[356477039,1742506303480,-500.0,0.00049589,120]
[356477040,1742506303490,-500.0,0.00049589,120]
[356477041,1742506303500,-500.0,0.00049589,120]
[356477042,1742506303510,-603.06,0.00049589,120]
[356477043,1742506303520,-2414.38,0.00049589,120]
[356477044,1742506303530,-500.0,0.00049589,120]
[356477045,1742506303539,-500.0,0.00049589,120]
[356477046,1742506303550,-448.98,0.00049589,120]
[356477047,1742506303560,-500.0,0.00049589,120]
[356477048,1742506303570,-500.0,0.00049589,120]
[356477049,1742506303581,-500.0,0.00049589,120]
[356477050,1742506303591,-500.0,0.00049589,120]
[356477051,1742506303601,-711.07,0.00049589,120]
[356477052,1742506303611,-500.0,0.00049589,120]
[356477053,1742506303620,-2861.11,0.00049589,120]
[356477054,1742506303630,-231.27841587,0.00049589,120]
[356477055,1742506303642,-264.29,0.00049589,120]
[356477056,1742506303653,-2613.79,0.00049589,120]
[356477057,1742506303663,-500.0,0.00049589,120]
[356477058,1742506303672,-1352.41,0.00049589,2]
[356477059,1742506303681,-500.0,0.00049589,120]
[356477060,1742506303692,-500.0,0.00049589,120]
[356477061,1742506303701,-500.0,0.00049589,7]
[356477062,1742506303712,-500.0,0.00049589,120]
[356477063,1742506303721,-2727.58,0.00049589,120]
[356477064,1742506303730,-500.0,0.00049589,120]
[356477065,1742506303740,-500.0,0.00049589,120]
[356477066,1742506303750,-554.02,0.00049589,120]
[356477067,1742506303759,-500.0,0.00049589,120]
[356477068,1742506303769,-500.0,0.00049589,10]
[356477069,1742506303778,-2523.63,0.00049589,120]
[356477070,1742506303787,-500.0,0.00049589,120]
[356477071,1742506303797,-500.0,0.00049589,120]
[356477072,1742506303807,-500.0,0.00049589,120]
[356477073,1742506303817,-500.0,0.00049589,120]
[356477074,1742506303826,-500.0,0.00049589,120]
[356477075,1742506303836,-788.19,0.00049589,120]
[356477076,1742506303845,-793.78,0.00049589,120]
[356477077,1742506303854,-2731.28,0.00049589,120]
[356477078,1742506303865,-500.0,0.00049589,120]
[356477079,1742506303874,-405.67,0.00049589,120]
[356477080,1742506303884,-500.0,0.00049589,120]
[356477081,1742506303894,-500.0,0.00049589,120]
[356477082,1742506303905,-500.0,0.00049589,120]
[356477083,1742506303915,-500.0,0.00049589,120]
[356477084,1742506303924,-500.0,0.00049589,120]
[356477085,1742506303934,-486.09,0.00049589,120]
[356477086,1742506303944,-1903.57,0.00049589,120]
[356477087,1742506303956,-500.0,0.00049589,120]
[356477088,1742506303967,-433.53550887,0.00049589,120]
[356477089,1742506303976,-500.0,0.00049589,120]
[356477090,1742506303986,-1749.23,0.00049589,120]
[356477091,1742506303997,-500.0,0.00049589,120]
[356477092,1742506304007,-393.46,0.00049589,120]
[356477093,1742506304017,-2471.83,0.00049589,120]
[356477094,1742506304027,-500.0,0.00049589,120]
[356477095,1742506304037,-500.0,0.00049589,120]
[356477096,1742506304047,-500.0,0.00049589,120]
[356477097,1742506304056,-500.0,0.00049589,120]
[356477098,1742506304066,-500.0,0.00049589,120]
[356477099,1742506304075,-539.32,0.00049589,120]
[356477100,1742506304084,-500.0,0.00049589,120]
[356477101,1742506304094,-1951.54,0.00049589,120]
[356477102,1742506304103,-584.57,0.00049589,120]
[356477103,1742506304112,-328.11,0.00049589,120]
[356477104,1742506304122,-500.0,0.00049589,120]
[356477105,1742506304131,-500.0,0.00049589,120]
[356477106,1742506304140,-500.0,0.00049589,120]
[356477107,1742506304149,-500.0,0.00049589,120]
[356477108,1742506304159,-2426.87,0.00049589,120]
[356477109,1742506304168,-500.0,0.00049589,120]
[356477110,1742506304177,-500.0,0.00049589,120]
[356477111,1742506304187,-540.14,0.00049589,120]
[356477112,1742506304196,-500.0,0.00049589,120]
[356477113,1742506304205,-500.0,0.00049589,30]
[356477114,1742506304214,-500.0,0.00049589,120]
[356477115,1742506304223,-500.0,0.00049589,120]
[356477116,1742506304233,-153.42,0.00049589,120]
[356477117,1742506304242,-500.0,0.00049589,120]
[356477118,1742506304252,-500.0,0.00049589,120]
[356477119,1742506304261,-707.59,0.00049589,120]
[356477120,1742506304271,-500.0,0.00049589,120]
[356477121,1742506304281,-500.0,0.00049681,120]
[356477122,1742506304290,-232.90044,0.000497,120]
[356477123,1742506304300,-585.81,0.000497,45]
[356477124,1742506304309,-585.81,0.000497,45]
[356477125,1742506304318,-585.81,0.000497,45]
[356477126,1742506304328,-585.81,0.000497,45]
[356477127,1742506304337,-585.81,0.000497,45]
[356477128,1742506304346,-585.81,0.000497,45]
[356477129,1742506304355,-585.81,0.000497,45]
[356477130,1742506304364,-585.81,0.000497,45]
[356477131,1742506304374,-585.81,0.000497,45]
[356477132,1742506304383,-585.81,0.000497,45]
[356477133,1742506304392,-585.81,0.000497,45]
[356477134,1742506304402,-585.81,0.000497,45]
[356477135,1742506304411,-585.81,0.000497,45]
[356477136,1742506304420,-585.81,0.000497,45]
[356477137,1742506304430,-585.81,0.000497,45]
[356477138,1742506304439,-585.81,0.000497,45]
[356477139,1742506304448,-585.81,0.000497,45]
[356477140,1742506304458,-585.81,0.000497,45]
[356477141,1742506304467,-585.81,0.000497,45]
[356477142,1742506304477,-585.81,0.000497,45]
[356477143,1742506304487,-585.81,0.000497,45]
[356477144,1742506304496,-585.81,0.000497,45]
[356477145,1742506304506,-585.81,0.000497,45]
[356477146,1742506304516,-585.81,0.000497,45]
[356477147,1742506304525,-277.57064419,0.000498,120]
[356477148,1742506304534,-532.25380337,0.000498,30]
[356477149,1742506304545,-500.0,0.00049863,120]
[356477150,1742506304555,-280.9,0.00049863,7]
[356477151,1742506304565,-1249.38,0.00049863,120]
[356477152,1742506304575,-1000.0,0.00049863,120]
[356477153,1742506304584,-704.1,0.00049863,120]
[356477154,1742506304594,-270.10923087,0.00049863,120]
[356477155,1742506304604,-500.0,0.00049863,120]
[356477156,1742506304614,-500.0,0.00049863,120]
[356477157,1742506304624,-2093.7,0.00049863,120]
[356477158,1742506304634,-1294.52,0.00049863,120]
[356477159,1742506304644,-805.3,0.00049863,120]
[356477160,1742506304653,-1740.46,0.00049863,120]
[356477161,1742506304662,-1204.72,0.00049863,120]
[356477162,1742506304672,-1605.43,0.00049863,120]
[356477163,1742506304681,-2366.34,0.00049863,120]
[356477164,1742506304690,-2058.24,0.00049863,120]
[356477165,1742506304701,-500.0,0.00049863,120]
[356477166,1742506304711,-1347.38,0.00049863,120]
[356477167,1742506304720,-1899.58,0.00049863,120]
[356477168,1742506304730,-1574.01,0.00049863,120]
[356477169,1742506304739,-3000.0,0.00049863,120]
[356477170,1742506304748,-2599.75,0.00049863,120]
[356477171,1742506304757,-1311.47,0.00049863,120]
[356477172,1742506304766,-1183.6,0.00049863,120]
[356477173,1742506304775,-1215.73,0.00049863,2]
[356477174,1742506304784,-642.45,0.00049863,7]
[356477175,1742506304793,-198.49948221,0.00049863,120]
[356477176,1742506304802,-500.0,0.00049863,120]
[356477177,1742506304811,-579.59,0.00049863,120]
[356477178,1742506304820,-591.06,0.00049863,120]
[356477179,1742506304830,-687.5,0.00049863,120]
[356477180,1742506304839,-500.0,0.00049863,120]
[356477181,1742506304848,-500.0,0.00049863,120]
[356477182,1742506304858,-500.0,0.00049863,120]
[356477183,1742506304867,-2414.38,0.00049863,120]
[356477184,1742506304876,-178.63,0.00049863,120]
[356477185,1742506304885,-371.58,0.00049863,120]
[356477186,1742506304895,-500.0,0.00049863,120]
[356477187,1742506304904,-500.0,0.00049863,120]
[356477188,1742506304914,-500.0,0.00049863,120]
[356477189,1742506304923,-500.0,0.00049863,120]
[356477190,1742506304933,-711.07,0.00049863,120]
[356477191,1742506304943,-500.0,0.00049863,120]
[356477192,1742506304952,-2861.11,0.00049863,120]
[356477193,1742506304966,-2613.79,0.00049863,120]
[356477194,1742506304975,-500.0,0.00049863,120]
[356477195,1742506304984,-1352.41,0.00049863,2]
[356477196,1742506305121,-591.43,0.00049863,120]
[356477197,1742506305143,-500.0,0.00049863,120]
[356477198,1742506305153,-500.0,0.00049863,7]
[356477199,1742506305162,-500.0,0.00049863,120]
[356477200,1742506305172,-2727.58,0.00049863,120]
[356477201,1742506305181,-500.0,0.00049863,120]
[356477202,1742506305190,-433.09,0.00049863,120]
[356477203,1742506305200,-554.02,0.00049863,120]
[356477204,1742506305209,-457.98,0.00049863,120]
[356477205,1742506305219,-500.0,0.00049863,10]
[356477206,1742506305228,-2523.63,0.00049863,120]
[356477207,1742506305237,-500.0,0.00049863,120]
[356477208,1742506305246,-500.0,0.00049863,120]
[356477209,1742506305256,-500.0,0.00049863,120]
[356477210,1742506305265,-500.0,0.00049863,120]
[356477211,1742506305275,-500.0,0.00049863,120]
[356477212,1742506305284,-788.19,0.00049863,120]
[356477213,1742506305294,-793.78,0.00049863,120]
[356477214,1742506305304,-2731.28,0.00049863,120]
[356477215,1742506305314,-500.0,0.00049863,120]
[356477216,1742506305323,-500.0,0.00049863,120]
[356477217,1742506305334,-500.0,0.00049863,120]
[356477218,1742506305344,-500.0,0.00049863,120]
[356477219,1742506305357,-500.0,0.00049863,120]
[356477220,1742506305367,-500.0,0.00049863,120]
[356477221,1742506305376,-1903.57,0.00049863,120]
[356477222,1742506305386,-500.0,0.00049863,120]
[356477223,1742506305395,-500.0,0.00049863,120]
[356477224,1742506305404,-1749.23,0.00049863,120]
[356477225,1742506305415,-407.81,0.00049863,120]
[356477226,1742506305426,-2471.83,0.00049863,120]
[356477227,1742506305437,-335.44,0.00049863,120]
[356477228,1742506305446,-500.0,0.00049863,120]
[356477229,1742506305457,-500.0,0.00049863,120]
[356477230,1742506305468,-500.0,0.00049863,120]
[356477231,1742506305478,-500.0,0.00049863,120]
[356477232,1742506305489,-500.0,0.00049863,120]
[356477233,1742506305498,-1951.54,0.00049863,120]
[356477234,1742506305509,-584.57,0.00049863,120]
[356477235,1742506305519,-500.0,0.00049863,120]
[356477236,1742506305528,-500.0,0.00049863,120]
[356477237,1742506305538,-500.0,0.00049863,120]
[356477238,1742506305547,-500.0,0.00049863,120]
[356477239,1742506305556,-2426.87,0.00049863,120]
[356477240,1742506305566,-170.22520641,0.00049863,120]
[356477241,1742506305575,-500.0,0.00049863,120]
[356477242,1742506305584,-351.37,0.00049863,120]
[356477243,1742506305594,-353.01,0.00049863,30]
[356477244,1742506305605,-800.0,0.00049863,120]
[356477245,1742506305616,-500.0,0.00049863,120]
[356477246,1742506305626,-500.0,0.00049863,120]
[356477247,1742506305637,-500.0,0.00049863,120]
[356477248,1742506305647,-500.0,0.00049863,120]
[356477249,1742506305659,-707.59,0.00049863,120]
[356477250,1742506305668,-394.44337043,0.00049863,120]
[356477251,1742506305677,-6025.46987956,0.00049876,31]
[356477252,1742506305687,-2679.60306033,0.00049898,66]
[356477253,1742506305696,-2543.2912175,0.000499,120]
[356477254,1742506305707,-1000.0,0.0004997,3]
[356477255,1742506305717,-500.0,0.0004997,3]
[356477256,1742506305727,-1132.07674164,0.0005,2]